[Event "68th GRE-ch 2018"]
[Site "Thessaloniki"]
[Date "2018.12.12"]
[Round "1"]
[White "Skaperdas, Kostantinos"]
[Black "Kanakaris, Georgios"]
[Result "0-1"]
[ECO "A43"]
[WhiteElo "2231"]
[BlackElo "2401"]
[Annotator "RC"]
[PlyCount "118"]
[EventDate "2018.12.12"]
[EventType "tourn"]
[EventCountry "GRE"]
[SourceTitle "playchess.com"]
[Source "ChessBase"]
[SourceQuality "1"]
[TimeControl "40/5400+30:1800+30"]

1. d4 {[%emt 0:00:00]} Nf6 {[%emt 0:02:11]} 2. Nf3 {[%emt 0:01:19]} c5 {[%emt 0:03:17]} 3. d5 {[%emt 0:04:19]} e6 {[%emt 0:00:18]} 4. Nc3 {[%emt 0:02:42]} exd5 {[%emt 0:11:28]} 5. Nxd5 {[%emt 0:00:16]} Nxd5 {[%emt 0:00:03]} 6. Qxd5 {[%emt 0:00:06]} Nc6 {[%emt 0:00:36]} 7. c3 {[%emt 0:17:33]} d6 {[%emt 0:07:10]} 8. Bg5 {[%emt 0:04:20]} Be6 {[%emt 0:18:12]} 9. Qxe6+ {[%emt 0:09:20]} fxe6 {[%emt 0:00:13]} 10. Bxd8 {[%emt 0:00:01]} Rxd8 {[%emt 0:00:07]} 11. e4 {[%emt 0:00:12]} Be7 {[%emt 0:01:11]} 12. Rd1 {[%emt 0:12:07]} a6 {[%emt 0:12:54]} 13. Bc4 {[%emt 0:16:40]} Kd7 {[%emt 0:09:28]} 14. a4 {[%emt 0:01:54]} Rhf8 {[%emt 0:00:57]} 15. O-O {[%emt 0:04:08]} g5 {[%emt 0:07:56]} 16. Ne1 {[%emt 0:06:45]} Ne5 {[%emt 0:03:56]} 17. Be2 {[%emt 0:00:48]} Bf6 {[%emt 0:04:33]} 18. Nd3 {[%emt 0:00:31]} Ke7 {[%emt 0:00:47]} 19. Nxe5 {[%emt 0:01:24]} Bxe5 {[%emt 0:00:04]} 20. g3 {[%emt 0:06:37]} Rb8 {[%emt 0:00:13]} 21. Ra1 {[%emt 0:03:09]} Rf7 {[%emt 0:03:48]} 22. Rfc1 {[%emt 0:05:32]} Rbf8 {[%emt 0:03:28]} 23. Rf1 {[%emt 0:00:01]} Rc8 {[%emt 0:01:43]} 24. Kg2 {[%emt 0:01:04]} Kd7 {[%emt 0:02:32]} 25. Rh1 {[%emt 0:00:34]} Rcf8 26. Raf1 Rg7 {[%emt 0:03:26]} 27. h3 {[%emt 0:01:25]} h6 {[%emt 0:00:25]} 28. Bh5 {[%emt 0:00:34]} Rgg8 {[%emt 0:01:17]} 29. Ra1 Rf6 {[%emt 0:00:08]} 30. Rhd1 {[%emt 0:00:41]} Kc6 {[%emt 0:00:32]} 31. a5 {[%emt 0:00:48]} Rgf8 {[%emt 0:01:07]} 32. Rd2 {[%emt 0:00:01]} b5 {[%emt 0:00:44]} 33. axb6 {[%emt 0:00:07]} Kxb6 {[%emt 0:00:03]} 34. Bd1 {[%emt 0:01:26]} d5 {[%emt 0:01:33]} 35. exd5 {[%emt 0:00:14]} exd5 {[%emt 0:00:03]} 36. Bg4 {[%emt 0:00:29]} d4 {[%emt 0:00:22]} 37. c4 {[%emt 0:00:49]} Bc7 {[%emt 0:00:34]} 38. Re1 {[%emt 0:00:23]} Kc6 {[%emt 0:00:38]} 39. Re6+ {[%emt 0:00:18]} Rxe6 {[%emt 0:00:16]} 40. Bxe6 {[%emt 0:00:00]} Ba5 {[%emt 0:00:00]} 41. Rd3 {[%emt 0:02:32]} Be1 {[%emt 0:10:18]} 42. Bd5+ {[%emt 0:01:10]} Kd6 {[%emt 0:00:29]} 43. Bf3 {[%emt 0:08:05]} h5 {[%emt 0:09:55]} 44. g4 {[%emt 0:09:32]} h4 {[%emt 0:00:55]} 45. Kf1 {[%emt 0:06:35]} Bb4 {[%emt 0:00:06]} 46. Be2 {[%emt 0:01:38]} Ke5 {[%emt 0:00:13]} 47. Bf3 {[%emt 0:01:27]} a5 {[%emt 0:01:56]} 48. Bd1 {[%emt 0:01:13]} Rf4 {[%emt 0:01:25]} 49. b3 {[%emt 0:02:35]} Bc3 {[%emt 0:01:19]} 50. Be2 {[%emt 0:00:59]} Rf8 {[%emt 0:00:45]} 51. Rf3 {[%emt 0:00:32]} Rxf3 {[%emt 0:00:07]} 52. Bxf3 {[%emt 0:00:05]} d3 {[%emt 0:00:03]} 53. Bb7 {[%emt 0:00:47]} Bd2 {[%emt 0:00:08]} 54. Bc6 {[%emt 0:00:38]} Kd4 {[%emt 0:00:36]} 55. Be8 {[%emt 0:00:32]} Kc3 {[%emt 0:00:46]} 56. Ba4 {[%emt 0:00:22]} Kb2 {[%emt 0:00:19]} 57. f3 {[%emt 0:00:22]} Kc1 {[%emt 0:00:13]} 58. Kf2 {[%emt 0:00:22]} Bb4 {[%emt 0:00:20]} 59. f4 {[%emt 0:00:45]} d2 {[%emt 0:00:05]} 0-1

[Event "68th GRE-ch 2018"]
[Site "Thessaloniki"]
[Date "2018.12.12"]
[Round "1"]
[White "Makka, Evanthia"]
[Black "Koutoukidis, Panagiotis"]
[Result "0-1"]
[ECO "A46"]
[WhiteElo "2084"]
[BlackElo "2357"]
[Annotator "NA"]
[PlyCount "92"]
[EventDate "2018.12.12"]
[EventType "tourn"]
[EventCountry "GRE"]
[SourceTitle "playchess.com"]
[Source "ChessBase"]
[SourceQuality "1"]
[TimeControl "40/5400+30:1800+30"]

1. d4 {[%emt 0:00:00]} Nf6 {[%emt 0:00:00]} 2. Nf3 {[%emt 0:00:05]} d5 {[%emt 0:00:01]} 3. c4 {[%emt 0:01:31]} e6 {[%emt 0:00:09]} 4. e3 {[%emt 0:00:39]} Be7 {[%emt 0:00:07]} 5. Nbd2 {[%emt 0:05:49]} O-O {[%emt 0:01:30]} 6. b3 {[%emt 0:02:22] D30: Queen's Gambit Declined: Systems without Nc3} b6 {[%emt 0:02:24]} 7. Bb2 {[%emt 0:03:02]} Bb7 {[%emt 0:00:35]} 8. Be2 {[%emt 0:03:45]} (8. Bd3 c5 9. dxc5 Bxc5 10. O-O dxc4 11. Nxc4 Nbd7 12. Qe2 b5 13. Nce5 Nxe5 14. Nxe5 a6 {1-0 (25) Wojtaszek,R (2749)-Svane,R (2555) Doha 2016}) 8... Nbd7 {[%emt 0:00:20]} 9. O-O {[%emt 0:01:43]} c5 {[%emt 0:07:13]} 10. Rc1 {[%emt 0:05:32]} Rc8 {[%emt 0:05:27] LiveBook: 15 Games} 11. cxd5 {[%emt 0:14:23]} Nxd5 {[%emt 0:00:46]} 12. Nc4 {[%emt 0:06:07]} b5 {[%emt 0:05:12]} 13. Nce5 {[%emt 0:03:59]} Nxe5 {[%emt 0:00:09]} 14. Nxe5 {[%emt 0:02:43]} a6 {[%emt 0:00:49]} 15. Bd3 $146 {[%emt 0:07:40]} ({Predecessor:} 15. Qd2 f6 16. Nf3 g5 17. Rfd1 Qb6 18. dxc5 Bxc5 {1-0 (45) Biro,K (2166)-Zelovic,M (2040) Slovakia 2009}) 15... Nf6 {[%emt 0:05:34]} 16. Qe2 {[%emt 0:03:54]} Qd5 {[%emt 0:07:21]} 17. f3 {[%emt 0:02:44]} cxd4 {[%emt 0:01:09]} 18. Bxd4 {[%emt 0:01:52]} Bd6 {[%emt 0:05:36]} 19. f4 {[%emt 0:04:28]} Ba8 {[%emt 0:09:49]} 20. Ng4 {[%emt 0:10:01]} Nxg4 {[%emt 0:01:29]} 21. Qxg4 {[%emt 0:00:09]} g6 {[%emt 0:00:41]} 22. Rcd1 {[%emt 0:03:25]} Bc5 {[%emt 0:05:43]} 23. Be2 {[%emt 0:06:23] [#]} (23. Bxc5 $15 Qxc5 24. Qe2) 23... Bxd4 $1 {[%emt 0:07:08]} 24. Rxd4 {[%emt 0:01:56]} Qc5 {[%emt 0:00:05]} 25. Rfd1 {[%emt 0:02:33]} Qc3 {[%emt 0:00:48]} 26. Kf2 {[%emt 0:01:52]} Qb2 {[%emt 0:00:57]} 27. R1d2 {[%emt 0:02:05]} Rc2 {[%emt 0:00:13]} 28. Rxc2 {[%emt 0:00:21]} Qxc2 {[%emt 0:00:07]} 29. Qg5 {[%emt 0:01:07]} Bd5 {[%emt 0:01:39]} 30. f5 {[%emt 0:01:13]} (30. h4 $15) 30... f6 {[%emt 0:06:49]} 31. Qh6 {[%emt 0:00:53]} Qxf5+ {[%emt 0:00:20]} 32. Rf4 {[%emt 0:00:15]} Qe5 {[%emt 0:01:29]} 33. h4 {[%emt 0:01:17]} (33. Rh4 $17 {keeps fighting.} Qc7 34. Rd4) 33... Qc7 {[%emt 0:05:25]} 34. Rg4 {[%emt 0:00:37]} e5 {[%emt 0:02:25]} 35. Bd3 {[%emt 0:00:33]} (35. e4 {was necessary.} f5 36. exf5) 35... Qg7 {[%emt 0:00:42]} 36. Qxg7+ {[%emt 0:00:14]} Kxg7 {[%emt 0:00:05]} 37. a4 {[%emt 0:00:24]} e4 {[%emt 0:00:49]} 38. Be2 $2 {[%emt 0:00:28]} (38. Bxe4 {is the only way for White.} f5 39. Rxg6+ hxg6 40. Bxd5) 38... f5 {[%emt 0:00:20]} 39. Rg3 {[%emt 0:00:14]} b4 {[%emt 0:01:27]} 40. Bd1 {[%emt 0:00:00]} Rc8 {[%emt 0:00:00]} 41. Rh3 {[%emt 0:06:48]} Rc3 $19 {[%emt 0:01:29]} 42. h5 {[%emt 0:07:25]} Bxb3 {[%emt 0:00:31]} 43. h6+ {[%emt 0:00:08]} Kf6 {[%emt 0:00:14]} 44. Bxb3 {[%emt 0:01:33]} Rxb3 {[%emt 0:00:06]} 45. Rh1 {[%emt 0:00:06]} Ra3 {[%emt 0:00:17]} 46. Rc1 {[%emt 0:00:16]} Ke5 0-1

[Event "68th GRE-ch 2018"]
[Site "Thessaloniki"]
[Date "2018.12.15"]
[Round "4"]
[White "Kanakaris, Georgios"]
[Black "Koutoukidis, Panagiotis"]
[Result "1/2-1/2"]
[ECO "A13"]
[WhiteElo "2401"]
[BlackElo "2357"]
[Annotator "NA"]
[PlyCount "63"]
[EventDate "2018.12.12"]
[EventType "tourn"]
[EventCountry "GRE"]
[SourceTitle "playchess.com"]
[Source "ChessBase"]
[SourceQuality "1"]
[TimeControl "40/5400+30:1800+30"]

1. c4 {[%emt 0:00:00]} Nf6 {[%emt 0:00:00]} 2. g3 {[%emt 0:00:00]} e6 {[%emt 0:00:00]} 3. Bg2 {[%emt 0:00:01]} d5 {[%emt 0:00:00]} 4. Nf3 {[%emt 0:00:18]} dxc4 {[%emt 0:00:02]} 5. Qa4+ {[%emt 0:00:28]} Bd7 {[%emt 0:00:05]} 6. Qxc4 {[%emt 0:00:06]} c5 {[%emt 0:00:04]} 7. Ne5 {[%emt 0:02:01]} Qc8 {[%emt 0:00:24]} 8. Qd3 {[%emt 0:03:37]} Nc6 {[%emt 0:00:47]} 9. Nxd7 {[%emt 0:00:28]} Nxd7 {[%emt 0:02:03]} 10. Nc3 {[%emt 0:01:31]} Nb4 {[%emt 0:16:01]} 11. Qb1 {[%emt 0:00:21]} Be7 {[%emt 0:00:15]} 12. b3 {[%emt 0:05:06]} O-O {[%emt 0:00:39]} 13. O-O {[%emt 0:01:26]} Qc7 {[%emt 0:06:51]} 14. Bb2 {[%emt 0:01:30]} Rad8 {[%emt 0:02:08]} 15. Rd1 {[%emt 0:11:03]} Nc6 {[%emt 0:03:42]} 16. Qc2 {[%emt 0:11:12]} a6 {[%emt 0:06:13]} 17. Rac1 {[%emt 0:00:57]} b5 {[%emt 0:00:30]} 18. Qe4 {[%emt 0:15:33]} Rc8 {[%emt 0:10:05]} 19. e3 {[%emt 0:12:28]} Nf6 {[%emt 0:01:46]} 20. Qb1 {[%emt 0:00:03]} Qb6 {[%emt 0:02:38]} 21. Ne4 {[%emt 0:02:31]} Nd5 {[%emt 0:03:19]} 22. Qa1 {[%emt 0:05:07]} f6 {[%emt 0:08:07]} 23. Bh3 {[%emt 0:01:36]} Na5 {[%emt 0:04:23]} 24. d3 {[%emt 0:01:00]} Rcd8 {[%emt 0:04:30]} 25. Qb1 {[%emt 0:00:23]} f5 {[%emt 0:02:11]} 26. Nc3 {[%emt 0:01:19]} Nf6 {[%emt 0:02:34]} 27. Ne2 {[%emt 0:03:20]} g6 {[%emt 0:01:19]} 28. Ba1 {[%emt 0:00:49]} Rc8 {[%emt 0:03:05]} 29. Qb2 {[%emt 0:02:35]} Rfd8 {[%emt 0:01:22]} 30. Nf4 {[%emt 0:01:40]} Kf7 {[%emt 0:00:05]} 31. Bf1 {[%emt 0:01:16]} Nc6 {[%emt 0:01:38]} 32. Bg2 {[%emt 0:03:29]} 1/2-1/2

[Event "68th GRE-ch 2018"]
[Site "Thessaloniki"]
[Date "2018.12.15"]
[Round "4"]
[White "Skaperdas, Kostantinos"]
[Black "Makka, Evanthia"]
[Result "1/2-1/2"]
[ECO "A06"]
[WhiteElo "2231"]
[BlackElo "2084"]
[Annotator "NA"]
[PlyCount "50"]
[EventDate "2018.12.12"]
[EventType "tourn"]
[EventCountry "GRE"]
[SourceTitle "playchess.com"]
[Source "ChessBase"]
[SourceQuality "1"]
[TimeControl "40/5400+30:1800+30"]

1. Nf3 {[%emt 0:00:00]} d5 {[%emt 0:03:43]} 2. e3 {[%emt 0:00:11]} Nf6 {[%emt 0:04:55]} 3. c4 {[%emt 0:00:46]} e6 {[%emt 0:00:30]} 4. Nc3 {[%emt 0:00:14]} Be7 {[%emt 0:01:36]} 5. b3 {[%emt 0:00:51]} O-O {[%emt 0:05:49]} 6. Bb2 {[%emt 0:00:57]} c5 {[%emt 0:01:01]} 7. cxd5 {[%emt 0:00:45]} Nxd5 {[%emt 0:02:45]} 8. h4 {[%emt 0:01:30]} Nxc3 {[%emt 0:06:13]} 9. Bxc3 {[%emt 0:03:21]} Bf6 {[%emt 0:00:18]} 10. Qc2 {[%emt 0:11:28]} Bxc3 {[%emt 0:13:12]} 11. dxc3 {[%emt 0:01:02]} f5 {[%emt 0:20:11]} 12. Bd3 {[%emt 0:31:34]} Nc6 {[%emt 0:02:58]} 13. O-O-O {[%emt 0:01:28]} Qf6 {[%emt 0:00:23]} 14. e4 {[%emt 0:07:29]} g6 {[%emt 0:06:13]} 15. h5 {[%emt 0:02:38]} g5 {[%emt 0:09:40]} 16. exf5 {[%emt 0:00:38]} g4 {[%emt 0:03:17]} 17. Nd2 {[%emt 0:09:23]} exf5 {[%emt 0:00:10]} 18. f4 {[%emt 0:04:01]} a6 {[%emt 0:04:54]} 19. Nc4 {[%emt 0:03:58]} b5 {[%emt 0:00:23]} 20. Nb6 {[%emt 0:02:30]} Rb8 {[%emt 0:00:06]} 21. Nd5 {[%emt 0:01:09]} Qf7 {[%emt 0:00:59]} 22. Rhe1 {[%emt 0:01:54]} Be6 {[%emt 0:02:26]} 23. Nc7 {[%emt 0:04:20]} Bc8 {[%emt 0:05:08]} 24. Nd5 {[%emt 0:01:13]} Be6 {[%emt 0:00:06]} 25. Nc7 {[%emt 0:00:21]} Bc8 {[%emt 0:01:20]} 1/2-1/2

[Event "68th GRE-ch 2018"]
[Site "Thessaloniki"]
[Date "2018.12.16"]
[Round "5"]
[White "Koutoukidis, Panagiotis"]
[Black "Ioannidis, Evgenios"]
[Result "0-1"]
[ECO "C55"]
[WhiteElo "2357"]
[BlackElo "2382"]
[Annotator "NA"]
[PlyCount "76"]
[EventDate "2018.12.12"]
[EventType "tourn"]
[EventCountry "GRE"]
[SourceTitle "playchess.com"]
[Source "ChessBase"]
[SourceQuality "1"]
[TimeControl "40/5400+30:1800+30"]

1. e4 {[%emt 0:00:00]} e5 {[%emt 0:00:00]} 2. Nf3 {[%emt 0:00:00]} Nc6 {[%emt 0:00:09]} 3. Bc4 {[%emt 0:00:17]} Nf6 {[%emt 0:00:28]} 4. d3 {[%emt 0:01:12]} Be7 {[%emt 0:00:26]} 5. O-O {[%emt 0:00:27]} O-O {[%emt 0:00:23]} 6. Re1 {[%emt 0:00:25]} d6 {[%emt 0:00:39]} 7. a4 {[%emt 0:00:08]} h6 {[%emt 0:01:27]} 8. a5 {[%emt 0:01:48]} a6 {[%emt 0:01:17]} 9. c3 {[%emt 0:04:01]} Be6 {[%emt 0:04:43]} 10. Bxe6 {[%emt 0:05:42]} fxe6 {[%emt 0:00:06]} 11. Qb3 {[%emt 0:00:19]} Qd7 {[%emt 0:00:52]} 12. h3 {[%emt 0:01:19]} Nh5 {[%emt 0:05:53]} 13. Be3 {[%emt 0:01:56]} d5 {[%emt 0:08:19]} 14. Ra4 {[%emt 0:11:18]} Rxf3 {[%emt 0:09:35]} 15. gxf3 {[%emt 0:00:38]} d4 {[%emt 0:00:11]} 16. Bc1 {[%emt 0:16:10]} Rf8 {[%emt 0:05:47]} 17. Qd1 {[%emt 0:00:53]} Bh4 {[%emt 0:07:09]} 18. Kg2 {[%emt 0:14:56]} Ne7 $17 {[%emt 0:04:26]} 19. Rg1 {[%emt 0:06:00]} Ng6 {[%emt 0:01:40]} 20. Kf1 {[%emt 0:01:38]} Rf6 {[%emt 0:07:19]} 21. cxd4 {[%emt 0:07:15]} Qf7 {[%emt 0:01:41]} 22. Nd2 {[%emt 0:01:48]} Nhf4 {[%emt 0:03:36]} 23. dxe5 {[%emt 0:07:56]} Nxe5 {[%emt 0:00:10]} 24. d4 {[%emt 0:03:19]} Ned3 {[%emt 0:12:59]} 25. Qc2 {[%emt 0:01:00]} Bxf2 {[%emt 0:05:22]} 26. Rg4 {[%emt 0:00:02]} Qh5 {[%emt 0:01:44]} 27. h4 {[%emt 0:01:10]} Bxh4 {[%emt 0:01:02]} 28. Qxc7 {[%emt 0:02:29]} Bg5 {[%emt 0:00:43]} 29. Kg1 {[%emt 0:00:23]} Nxc1 {[%emt 0:02:31]} 30. Nf1 {[%emt 0:01:03]} Nce2+ {[%emt 0:02:49]} 31. Kf2 {[%emt 0:00:11]} Qh1 {[%emt 0:01:43]} 32. Ra3 {[%emt 0:01:01]} Nc1 {[%emt 0:03:50]} 33. Qc4 {[%emt 0:01:34]} Kh7 {[%emt 0:02:57]} 34. Rc3 {[%emt 0:01:10]} Nfe2 {[%emt 0:00:38]} 35. Rxg5 {[%emt 0:01:33]} hxg5 {[%emt 0:00:14]} 36. Re3 {[%emt 0:01:07]} Qh4+ {[%emt 0:00:47]} 37. Kg2 {[%emt 0:00:13]} g4 {[%emt 0:01:31]} 38. Qc7 {[%emt 0:01:46]} Nf4+ {[%emt 0:00:12]} 0-1

[Event "68th GRE-ch 2018"]
[Site "Thessaloniki"]
[Date "2018.12.16"]
[Round "5"]
[White "Gouloutis, Nikolaos"]
[Black "Skaperdas, Kostantinos"]
[Result "1/2-1/2"]
[ECO "A06"]
[WhiteElo "2353"]
[BlackElo "2231"]
[Annotator "NA"]
[PlyCount "100"]
[EventDate "2018.12.12"]
[EventType "tourn"]
[EventCountry "GRE"]
[SourceTitle "playchess.com"]
[Source "ChessBase"]
[SourceQuality "1"]
[TimeControl "40/5400+30:1800+30"]

1. Nf3 {[%emt 0:00:00]} d5 {[%emt 0:00:16]} 2. g3 {[%emt 0:00:00]} g6 {[%emt 0:01:26]} 3. Bg2 {[%emt 0:06:02]} Bg7 {[%emt 0:00:19]} 4. d4 {[%emt 0:00:39]} Nf6 {[%emt 0:00:13]} 5. O-O {[%emt 0:00:06]} O-O {[%emt 0:00:30]} 6. c4 {[%emt 0:00:03]} dxc4 {[%emt 0:00:15]} 7. Na3 {[%emt 0:00:05]} c5 {[%emt 0:00:14]} 8. Nxc4 {[%emt 0:01:38]} Be6 {[%emt 0:00:08]} 9. b3 {[%emt 0:12:12]} cxd4 {[%emt 0:12:58] D77: Fianchetto Grünfeld: 6 0-0: Replies other than 6...c6} (9... Nc6 10. Bb2 cxd4 11. Nxd4 Nxd4 12. Qxd4 Qxd4 13. Bxd4 Nd5 14. Rfd1 Rad8 15. Bxg7 Kxg7 16. Rd3 b5 17. Bxd5 Rxd5 18. Rxd5 Bxd5 {½-½ (28) Malakhov,V (2686)-Matlakov,M (2735) St Petersburg 2017}) 10. Nxd4 {[%emt 0:01:37]} Bd5 {[%emt 0:00:20]} 11. Bb2 {[%emt 0:06:21]} Bxg2 {[%emt 0:02:35]} 12. Kxg2 {[%emt 0:00:04]} Qd5+ {[%emt 0:00:44]} 13. f3 $146 {[%emt 0:03:59]} ({Predecessor:} 13. Nf3 Nc6 14. Bxf6 Qxd1 15. Raxd1 Bxf6 16. Rd7 Rab8 17. Rfd1 {½-½ (41) Quinteros,M-Barreras,A Cienfuegos 1972}) 13... Rd8 {[%emt 0:07:02]} 14. e4 {[%emt 0:24:52]} Qc5 {[%emt 0:09:18]} 15. Ne6 {[%emt 0:00:39]} Rxd1 {[%emt 0:00:21]} 16. Nxc5 {[%emt 0:00:04]} Rxa1 {[%emt 0:01:39]} 17. Rxa1 {[%emt 0:00:12]} b6 {[%emt 0:00:22]} 18. Rd1 {[%emt 0:04:33]} Nc6 {[%emt 0:03:54]} 19. Na6 {[%emt 0:02:24]} Rd8 {[%emt 0:03:03]} 20. Rxd8+ {[%emt 0:01:24]} Nxd8 {[%emt 0:00:01]} 21. Nb8 $14 {[%emt 0:02:58]} Ne8 {[%emt 0:23:07]} 22. Ba3 {[%emt 0:05:41]} e6 {[%emt 0:01:32]} 23. Be7 {[%emt 0:09:04]} Nb7 {[%emt 0:00:20]} 24. a4 {[%emt 0:00:09]} Nc7 {[%emt 0:10:45]} 25. Bd6 {[%emt 0:00:08]} Na8 {[%emt 0:02:42]} 26. e5 {[%emt 0:02:36]} Bf8 {[%emt 0:03:51]} 27. Nd7 {[%emt 0:02:34]} Bxd6 {[%emt 0:03:51]} 28. exd6 {[%emt 0:07:12]} a6 {[%emt 0:05:03]} 29. Ndxb6 {[%emt 0:00:32]} Nxb6 {[%emt 0:01:07]} 30. Nxb6 {[%emt 0:00:03]} Nxd6 {[%emt 0:00:09]} 31. b4 {[%emt 0:00:02]} Ne8 {[%emt 0:01:56]} 32. Nd7 {[%emt 0:01:52]} Nc7 {[%emt 0:00:30]} 33. f4 {[%emt 0:01:04]} f5 {[%emt 0:00:42]} 34. Nc5 {[%emt 0:04:39]} Kf7 {[%emt 0:00:15]} 35. Kf2 {[%emt 0:00:16]} Ke7 {[%emt 0:00:19]} 36. Ke2 {[%emt 0:00:35]} Kd6 {[%emt 0:00:28]} 37. Kd3 {[%emt 0:00:12]} e5 {[%emt 0:01:52]} 38. fxe5+ {[%emt 0:01:52]} Kxe5 {[%emt 0:00:01]} 39. Kc4 {[%emt 0:00:04]} g5 {[%emt 0:01:07]} 40. Nd7+ {[%emt 0:00:00]} Kd6 {[%emt 0:00:00]} 41. Nf8 {[%emt 0:12:12]} h6 {[%emt 0:04:52]} 42. Kd4 {[%emt 0:00:15]} Ke7 {[%emt 0:11:10]} 43. Ng6+ {[%emt 0:00:04]} Kf6 {[%emt 0:04:45]} 44. Nf8 {[%emt 0:00:13]} Ke7 {[%emt 0:00:02]} 45. Ng6+ {[%emt 0:00:09]} Kf6 {[%emt 0:00:11]} 46. Ne5 {[%emt 0:00:59]} Ne6+ {[%emt 0:01:04]} 47. Kd5 {[%emt 0:00:05]} Nc7+ {[%emt 0:00:09]} 48. Kd6 {[%emt 0:00:04]} Ne8+ {[%emt 0:00:07]} 49. Kd5 {[%emt 0:00:05]} Nc7+ {[%emt 0:00:04]} 50. Kd4 {[%emt 0:00:03]} Ne6+ {[%emt 0:00:05]} 1/2-1/2

[Event "68th GRE-ch 2018"]
[Site "Thessaloniki"]
[Date "2018.12.16"]
[Round "5"]
[White "Makka, Evanthia"]
[Black "Mastrovasilis, Athanasios"]
[Result "0-1"]
[ECO "B30"]
[WhiteElo "2084"]
[BlackElo "2510"]
[Annotator "ChessBase"]
[PlyCount "56"]
[EventDate "2018.12.12"]
[EventType "tourn"]
[EventCountry "GRE"]
[SourceTitle "playchess.com"]
[Source "ChessBase"]
[SourceQuality "1"]
[TimeControl "40/5400+30:1800+30"]

1. e4 {[%emt 0:00:00]} c5 {[%emt 0:02:57]} 2. Nf3 {[%emt 0:00:00]} Nc6 {[%emt 0:01:27]} 3. Bb5 {[%emt 0:02:08]} e6 {[%emt 0:02:15]} 4. Bxc6 {[%emt 0:05:02]} bxc6 {[%emt 0:03:32]} 5. d3 {[%emt 0:01:49]} Ne7 {[%emt 0:03:44]} 6. Ng5 {[%emt 0:01:46]} h6 {[%emt 0:13:30]} 7. Qh5 {[%emt 0:11:09]} g6 {[%emt 0:01:46]} 8. Qh3 {[%emt 0:00:26]} Bg7 {[%emt 0:01:00]} 9. Nf3 {[%emt 0:00:06]} e5 {[%emt 0:05:14]} 10. O-O {[%emt 0:04:42]} d6 {[%emt 0:01:05]} 11. Qg3 {[%emt 0:04:56]} g5 {[%emt 0:06:28]} 12. h4 {[%emt 0:11:52]} f6 {[%emt 0:16:27]} 13. Nc3 {[%emt 0:08:17]} Be6 {[%emt 0:06:00]} 14. Ne2 {[%emt 0:09:51]} Qd7 {[%emt 0:01:26]} 15. c3 {[%emt 0:08:23]} O-O-O {[%emt 0:11:26]} 16. d4 {[%emt 0:02:22]} f5 {[%emt 0:04:23]} 17. hxg5 {[%emt 0:10:32]} fxe4 {[%emt 0:01:38]} 18. Nxe5 {[%emt 0:13:47]} dxe5 {[%emt 0:00:25]} 19. dxe5 {[%emt 0:00:35]} Nf5 {[%emt 0:00:28]} 20. Qf4 {[%emt 0:00:31]} hxg5 {[%emt 0:00:51]} 21. Qxe4 {[%emt 0:00:40]} Rh4 {[%emt 0:02:15]} 22. Qc2 {[%emt 0:00:44]} Bxe5 {[%emt 0:03:11]} 23. f3 {[%emt 0:00:53]} Qh7 {[%emt 0:02:03]} 24. Kf2 {[%emt 0:00:29]} Rh2 {[%emt 0:01:19]} 25. Rg1 {[%emt 0:00:33]} Qh4+ {[%emt 0:00:53]} 26. Kf1 {[%emt 0:00:11]} Ng3+ {[%emt 0:01:10]} 27. Nxg3 {[%emt 0:00:16]} Bxg3 {[%emt 0:00:48]} 28. b3 {[%emt 0:00:23]} Qc4+ {[%emt 0:00:53]} 0-1

[Event "68th GRE-ch 2018"]
[Site "Thessaloniki"]
[Date "2018.12.17"]
[Round "6"]
[White "Kanakaris, Georgios"]
[Black "Ioannidis, Evgenios"]
[Result "1/2-1/2"]
[ECO "A13"]
[WhiteElo "2401"]
[BlackElo "2382"]
[Annotator "NA"]
[PlyCount "75"]
[EventDate "2018.12.12"]
[EventType "tourn"]
[EventCountry "GRE"]
[SourceTitle "playchess.com"]
[Source "ChessBase"]
[SourceQuality "1"]
[TimeControl "40/5400+30:1800+30"]

1. Nf3 {[%emt 0:00:00]} e6 {[%emt 0:00:03]} 2. c4 {[%emt 0:01:09]} d5 {[%emt 0:01:22]} 3. e3 {[%emt 0:00:09]} c5 {[%emt 0:00:51]} 4. d4 {[%emt 0:01:05]} a6 {[%emt 0:00:53]} 5. cxd5 {[%emt 0:00:40]} exd5 {[%emt 0:01:31]} 6. Nc3 {[%emt 0:02:00]} Nf6 {[%emt 0:01:00]} 7. Be2 {[%emt 0:02:36]} Be7 {[%emt 0:08:09]} 8. dxc5 {[%emt 0:00:39]} Bxc5 {[%emt 0:00:10]} 9. O-O {[%emt 0:00:19]} O-O {[%emt 0:00:17]} 10. b3 {[%emt 0:04:19]} Nc6 {[%emt 0:07:00]} 11. Bb2 {[%emt 0:00:10]} Be6 {[%emt 0:01:32]} 12. Na4 {[%emt 0:08:17]} Bd6 {[%emt 0:03:20] LiveBook: 4 Games} 13. Nd4 {[%emt 0:12:43]} Ne4 {[%emt 0:21:52]} 14. Rc1 $11 {[%emt 0:12:55]} Ne5 {[%emt 0:19:30]} 15. f4 {[%emt 0:01:36]} Nd7 {[%emt 0:08:18]} 16. Bf3 {[%emt 0:11:57]} Ndf6 {[%emt 0:01:14]} 17. Nc3 {[%emt 0:00:35]} Nxc3 {[%emt 0:02:57]} 18. Rxc3 {[%emt 0:02:24]} Bd7 {[%emt 0:02:33]} 19. Rd3 {[%emt 0:06:04]} Re8 {[%emt 0:01:46]} 20. Qd2 {[%emt 0:07:22]} Rc8 {[%emt 0:03:12]} 21. Rd1 {[%emt 0:01:10]} Qe7 {[%emt 0:01:16]} 22. Qf2 {[%emt 0:02:51]} Bc5 {[%emt 0:03:42]} 23. Qg3 {[%emt 0:02:22]} Ba7 {[%emt 0:02:06]} 24. h3 {[%emt 0:01:37]} Qf8 {[%emt 0:00:30]} 25. a4 {[%emt 0:05:23]} Ne4 {[%emt 0:00:30]} 26. Bxe4 {[%emt 0:00:04]} dxe4 {[%emt 0:00:31]} 27. R3d2 {[%emt 0:00:19]} f6 {[%emt 0:00:41]} 28. Nb5 {[%emt 0:05:05]} Bxb5 {[%emt 0:01:05]} 29. axb5 {[%emt 0:00:04]} Rcd8 {[%emt 0:03:55]} 30. bxa6 {[%emt 0:00:52]} bxa6 {[%emt 0:00:15]} 31. Rd7 {[%emt 0:00:33]} Bc5 {[%emt 0:00:56]} 32. Kh2 {[%emt 0:03:21]} Rxd7 {[%emt 0:00:36]} 33. Rxd7 {[%emt 0:00:06]} Rd8 {[%emt 0:01:16]} 34. Qg4 {[%emt 0:01:39]} Rxd7 {[%emt 0:00:23]} 35. Qxd7 {[%emt 0:00:11]} Bxe3 {[%emt 0:00:34]} 36. Qe6+ {[%emt 0:00:35]} Kh8 {[%emt 0:00:15]} 37. Qxe4 {[%emt 0:00:08]} Bc5 {[%emt 0:00:22]} 38. Qc4 {[%emt 0:01:09]} 1/2-1/2